bitfinex-derivatives/quotes_BNBF0:USTF0_20250907
["timestamp","ask_amount","ask_price","bid_price","bid_amount"]
[1757205400607,0.2017479,863.97,862.63,0.8853287]
[1757205400807,0.2017479,863.97,862.32,2.6015819]
[1757205400808,0.2017479,863.97,862.64,0.8853287]
[1757205401007,0.2017479,863.97,862.65,0.8853287]
[1757205401310,0.2017479,863.97,862.32,2.6015819]
[1757205401610,0.2017479,863.97,862.33,2.0082304]
[1757205401812,0.701299,863.96,862.34,2.0082304]
[1757205402012,0.701299,863.95,862.35,2.0082304]
[1757205402211,0.701299,863.94,862.36,2.0082304]
[1757205402411,0.701299,863.93,862.37,2.0082304]
[1757205402612,0.2017479,863.97,862.38,2.0082304]
[1757205402813,0.7012811,863.96,862.39,2.0082304]
[1757205403107,0.7012811,863.95,862.4,2.0082304]
[1757205403308,0.7012811,863.95,862.31,0.2017479]
[1757205403309,0.2017479,863.97,862.41,2.0082304]
[1757205403609,0.7012737,863.96,862.42,2.0082304]
[1757205403807,0.7012737,863.95,862.43,2.0082304]
[1757205404009,0.2017479,863.97,862.44,2.0082304]
[1757205404208,0.7012876,863.96,862.45,2.0082304]
[1757205404507,0.7012876,863.95,862.46,2.0082304]
[1757205404712,0.2017479,863.97,862.47,2.0082304]
[1757205404906,0.7012809,863.96,862.48,0.8851474]
[1757205405107,0.7012809,863.95,862.49,0.8851474]
[1757205405311,0.2017479,863.97,862.5,0.8851474]
[1757205405510,0.7012868,863.96,862.51,0.8851474]
[1757205405709,0.7012868,863.95,862.52,0.8851474]
[1757205405913,0.2017479,863.97,862.53,0.8851474]
[1757205406214,0.7012868,863.96,862.54,0.8851474]
[1757205406412,0.7012868,863.95,862.55,0.8851474]
[1757205406612,0.2017479,863.97,862.56,0.8851474]
[1757205406909,0.701281,863.96,862.57,0.8851474]
[1757205407208,0.701281,863.95,862.58,0.8851474]
[1757205407411,0.2017479,863.97,862.31,0.2017479]
[1757205407609,0.7012757,863.96,862.32,2.0080249]
[1757205407913,0.7012757,863.95,863.21,1.5676602]
[1757205408113,0.2017479,863.97,863.16,1.5676602]
[1757205408309,0.7012742,863.96,863.16,1.5676602]
[1757205408612,0.7012742,863.95,863.16,1.5676602]
[1757205408813,0.2017479,863.97,863.15,1.5676602]
[1757205409011,0.7012709,863.96,863.26,1.5676602]
[1757205409212,0.7012709,863.95,863.26,1.5676602]
[1757205409413,0.2017479,863.97,863.26,1.5676602]
[1757205409612,0.7012663,863.96,863.26,1.5676602]
[1757205409811,0.7012663,863.95,863.26,1.5676602]
[1757205410011,0.2017479,863.97,863.26,1.5676602]
[1757205410210,0.7012649,863.96,863.26,1.5676602]
[1757205410409,0.7012649,863.95,863.26,1.5676602]
[1757205410613,0.2017479,863.97,863.26,1.5676602]
[1757205410908,0.7012619,863.96,863.26,1.5676602]
[1757205411109,0.7012619,863.95,863.26,1.5676602]
[1757205411310,0.2017479,863.97,863.26,1.5676602]
[1757205411609,0.701258,863.96,863.26,1.5676602]
[1757205411811,0.2017479,863.97,863.31,1.5676602]
[1757205416018,0.2017479,863.97,863.36,1.5676602]
[1757205416316,0.2017479,863.97,863.37,1.5676602]
[1757205416618,0.2017479,863.97,863.37,2.6125607]
[1757205416914,0.2017479,863.97,863.37,1.0449005]
[1757205417614,0.2017479,863.97,863.43,1.0449005]
[1757205422318,0.2017479,863.97,863.45,1.0449005]
[1757205423116,0.2017479,863.97,863.55,1.0449005]
[1757205424420,0.0417479,863.97,863.55,1.0449005]
[1757205424622,0.7783704,864.65,863.55,1.0449005]
[1757205425319,0.7783704,864.66,863.55,1.0449005]
[1757205425820,0.7783704,864.65,863.55,0.8449005]
[1757205426319,0.7783704,864.66,863.55,0.8449005]
[1757205427520,0.20166898,864.39,863.55,0.8449005]
[1757205432830,0.20166898,864.39,863.55,2.4125607]
[1757205433330,0.20166898,864.39,863.58,1.5676602]
[1757205433526,0.20166898,864.39,863.6,1.5676602]
[1757205434431,0.20166898,864.39,863.59,1.5676602]
[1757205434932,0.20166898,864.39,863.6,1.5676602]
[1757205435332,0.20166898,864.39,863.59,1.5676602]
[1757205435926,0.20166898,864.39,863.58,1.5676602]
[1757205437330,0.20166898,864.39,863.57,1.5676602]
[1757205438327,0.20166898,864.39,862.85,2.6015819]
[1757205438328,0.20166898,864.39,863.56,1.5676602]
[1757205438733,0.20166898,864.39,863.58,1.5676602]
[1757205438934,0.20166898,864.39,863.63,1.5676602]
[1757205439436,0.20166898,864.39,863.62,1.5676602]
[1757205440138,0.20166898,864.39,863.64,1.5676602]
[1757205440438,0.20166898,864.39,863.63,1.5676602]
[1757205441333,0.20166898,864.39,863.61,1.5676602]
[1757205441533,0.20166898,864.39,863.58,1.5676602]
[1757205442238,0.20166898,864.39,863.59,1.5676602]
[1757205442439,0.20166898,864.39,863.57,1.5676602]
[1757205442939,0.20166898,864.39,863.58,1.5676602]
[1757205443238,0.20166898,864.39,863.57,1.5676602]
[1757205443436,0.20166898,864.39,863.62,1.5676602]
[1757205444439,0.20166898,864.39,863.61,1.5676602]
[1757205445037,0.20166898,864.39,863.64,1.5676602]
[1757205445437,0.20166898,864.39,863.63,1.5676602]
[1757205446441,0.20166898,864.39,863.62,1.5676602]
[1757205447044,0.20166898,864.39,863.63,1.5676602]
[1757205448443,0.20166898,864.39,863.62,1.5676602]
[1757205448840,0.20166898,864.39,863.64,1.5676602]
[1757205449343,0.20166898,864.39,863.63,1.5676602]
[1757205449644,0.20166898,864.39,863.59,1.5676602]
[1757205449941,0.20166898,864.39,863.6,1.5676602]
[1757205450239,0.20166898,864.39,863.59,1.5676602]
[1757205451344,0.20166898,864.39,863.58,1.5676602]
[1757205451942,0.20166898,864.39,863.59,1.5676602]
[1757205452238,0.20166898,864.39,863.58,1.5676602]
[1757205452843,0.20166898,864.39,862.9,2.6015819]
[1757205452844,0.20166898,864.39,863.59,1.5676602]
[1757205453740,0.20166898,864.39,863.58,1.5676602]
[1757205454342,0.20166898,864.39,863.57,1.5676602]
[1757205454641,0.20166898,864.39,863.59,1.5676602]
[1757205454845,0.20166898,864.39,863.63,1.5676602]
[1757205455745,0.20166898,864.39,863.78,1.0374582]
[1757205457346,0.20166898,864.39,863.77,1.0374582]
[1757205458247,0.20166898,864.39,863.78,1.0374582]
[1757205458449,0.20166898,864.39,863.77,1.0374582]
[1757205459245,0.20166898,864.39,863.78,1.0374582]
[1757205459445,0.20166898,864.39,863.77,1.0374582]
[1757205459650,0.20166898,864.39,863.8,1.0374582]
[1757205460453,0.20166898,864.39,863.79,1.0374582]
[1757205461147,0.20166898,864.39,863.8,1.0374582]
[1757205462650,0.20166898,864.39,863.75,1.0374582]
[1757205463246,0.20166898,864.39,863.72,1.0374582]
[1757205463447,0.20166898,864.39,863.73,1.0374582]
[1757205464246,0.20166898,864.39,863.71,1.0374582]
[1757205464450,0.20166898,864.39,863.75,1.0374582]
[1757205465648,0.20166898,864.39,863.79,1.0374582]
[1757205466352,0.20166898,864.39,863.8,1.0374582]
[1757205467153,0.20166898,864.39,863.81,1.0374582]
[1757205467354,0.20166898,864.39,863.86,1.0374582]
[1757205468353,0.20166898,864.39,863.87,1.0374582]
[1757205469249,0.20166898,864.39,862.9,2.6015819]
[1757205469250,0.20166898,864.39,863.88,1.0374582]
[1757205469555,0.20166898,864.39,863.87,1.0374582]
[1757205470054,0.20166898,864.39,863.91,1.0374582]
[1757205470353,0.20166898,864.39,863.95,1.0374582]
[1757205470854,0.20166898,864.39,863.99,1.0374582]
[1757205471054,0.20166898,864.39,864.02,1.0374582]
[1757205472152,0.77830958,865.21,864.03,1.0374582]
[1757205472351,0.77830958,865.21,864.02,1.0374582]
[1757205473253,0.77830958,865.21,864.04,1.0374582]
[1757205473451,0.77830958,865.21,864.03,1.0374582]
[1757205474257,0.77830958,865.21,864.04,1.0374582]
[1757205474457,0.77830958,865.21,864.03,1.0374582]
[1757205475154,0.20155043,864.92,864.03,1.0374582]
[1757205475353,0.20155043,864.92,864.04,1.0374582]
[1757205476155,0.20155043,864.92,864.03,1.0374582]
[1757205476358,0.20155043,864.92,864.1,1.0374582]
[1757205476555,0.20155043,864.92,864.12,1.0374582]
[1757205479263,0.20155043,864.92,864.13,1.0374582]
[1757205479465,0.20155043,864.92,864.12,1.0374582]
[1757205480561,0.20155043,864.92,864.13,1.0374582]
[1757205480860,0.20155043,864.92,864.14,1.0374582]
[1757205481864,0.20155043,864.92,864.13,1.0374582]
[1757205482262,0.20155043,864.92,862.56,5.1685894]
[1757205482263,0.20155043,864.92,864.09,1.0374582]
[1757205484169,0.20155043,864.92,864.08,1.0374582]
[1757205484463,0.20155043,864.92,864.09,1.0374582]
[1757205485065,0.20155043,864.92,864.07,1.0374582]
[1757205485570,0.20155043,864.92,864.05,1.0374582]
[1757205486069,0.20155043,864.92,864.06,1.0374582]
[1757205486368,0.20155043,864.92,864.07,1.0374582]
[1757205487168,0.20155043,864.92,864.06,1.0374582]
[1757205487369,0.20155043,864.92,864.07,1.0374582]
[1757205488269,0.20155043,864.92,864.06,1.0374582]
[1757205490270,0.20155043,864.92,864.07,1.0374582]
[1757205490770,0.20155043,864.92,864.06,1.0374582]
[1757205491369,0.20155043,864.92,864.07,1.0374582]
[1757205492071,0.20155043,864.92,864.09,1.0374582]
[1757205492271,0.20155043,864.92,864.08,1.0374582]
[1757205492470,0.20155043,864.92,864.09,1.0374582]
[1757205493374,0.20155043,864.92,864.1,1.0374582]
[1757205493870,0.20155043,864.92,864.09,1.0374582]
[1757205494374,0.20155043,864.92,864.1,1.0374582]
[1757205495171,0.20155043,864.92,864.11,1.0374582]
[1757205495471,0.20155043,864.92,864.13,1.0374582]
[1757205496775,0.20155043,864.92,864.12,1.0374582]
[1757205497576,0.20155043,864.92,864.13,1.0374582]
[1757205498278,0.20155043,864.92,864.14,1.0374582]
[1757205507085,0.20155043,864.92,864.11,1.0374582]
[1757205508486,0.20155043,864.92,864.12,1.0374582]
[1757205509586,0.20155043,864.92,864.1,1.0374582]
[1757205510186,0.20155043,864.92,864.11,1.0374582]
[1757205511388,0.20155043,864.92,864.12,1.0374582]
[1757205513284,0.20155043,864.92,864.13,1.0374582]
[1757205515385,0.20155043,864.92,864.14,1.0374582]
[1757205521293,0.20155043,864.92,864.14,2.6051184]
[1757205524894,0.20155043,864.92,864.13,2.6051184]
[1757205528199,0.20155043,864.92,864.13,0.1466194]
[1757205528696,0.72188933,864.91,863.69,2.6015819]
[1757205528997,0.72188933,864.9,863.69,2.6015819]
[1757205529195,0.72188933,864.89,863.62,2.6015819]
[1757205529395,0.72188933,864.88,863.62,2.6015819]
[1757205529597,0.72188933,864.87,863.68,2.6015819]
[1757205529796,0.72188933,864.86,863.68,2.6015819]
[1757205529994,0.72188933,864.85,863.68,2.6015819]
[1757205530195,0.72188933,864.84,863.68,2.6015819]
[1757205530399,0.72188933,864.83,863.68,2.6015819]
[1757205530600,0.72188933,864.82,863.69,2.6015819]
[1757205530799,0.72188933,864.81,863.69,2.6015819]
[1757205531100,0.72188933,864.8,863.71,2.6015819]
[1757205531296,0.72188933,864.79,863.71,2.6015819]
[1757205531499,0.72188933,864.78,863.71,2.6015819]
[1757205531699,0.72188933,864.77,863.71,2.6015819]
[1757205531900,0.20155043,864.92,863.71,2.6015819]
[1757205532194,0.714456,864.91,863.71,2.6015819]
[1757205532400,0.714456,864.9,863.71,2.6015819]
[1757205532600,0.714456,864.89,863.71,2.6015819]
[1757205532798,0.714456,864.88,863.71,2.6015819]
[1757205532998,0.714456,864.87,863.71,2.6015819]
[1757205533200,0.714456,864.86,863.71,2.6015819]
[1757205533396,0.714456,864.85,863.71,2.6015819]
[1757205533600,0.714456,864.84,863.71,2.6015819]
[1757205533796,0.714456,864.83,863.72,2.6015819]
[1757205533996,0.714456,864.82,863.72,2.6015819]
[1757205534201,0.714456,864.81,863.72,2.6015819]
[1757205534398,0.714456,864.8,863.72,2.6015819]
[1757205534597,0.714456,864.79,863.72,2.6015819]
[1757205534897,0.714456,864.78,863.72,2.6015819]
[1757205535103,0.714456,864.77,863.72,2.6015819]
[1757205535299,0.714456,864.76,863.74,2.6015819]
[1757205535498,0.714456,864.75,863.74,2.6015819]
[1757205535696,0.714456,864.74,863.74,2.6015819]
[1757205535903,0.20155043,864.92,863.74,2.6015819]
[1757205536102,0.71488495,864.91,863.74,2.6015819]
[1757205536401,0.71488495,864.9,863.74,2.6015819]
[1757205536598,0.71488495,864.89,863.74,2.6015819]
[1757205536798,0.71488495,864.88,863.74,2.6015819]
[1757205537001,0.71488495,864.87,863.74,2.6015819]
[1757205537201,0.71488495,864.86,863.74,2.6015819]
[1757205537401,0.71488495,864.85,863.74,2.6015819]
[1757205537601,0.71488495,864.84,863.74,2.6015819]
[1757205537800,0.71488495,864.83,863.74,2.6015819]
[1757205538100,0.71488495,864.82,863.74,2.6015819]
[1757205538404,0.71488495,864.81,863.74,2.6015819]
[1757205538705,0.71488495,864.8,863.74,2.6015819]
[1757205538901,0.71488495,864.79,863.74,2.6015819]
[1757205539105,0.71488495,864.78,863.74,2.6015819]
[1757205539405,0.71488495,864.77,863.74,2.6015819]
[1757205539606,0.71488495,864.76,863.74,2.6015819]
[1757205539802,0.71488495,864.75,863.74,2.6015819]
[1757205540008,0.71488495,864.74,863.74,2.6015819]
[1757205540203,0.20155043,864.92,863.74,2.6015819]
[1757205540403,0.71492247,864.91,863.74,2.6015819]
[1757205540707,0.71492247,864.9,863.74,2.6015819]
[1757205540906,0.71492247,864.89,863.74,2.6015819]
[1757205541105,0.71492247,864.88,863.74,2.6015819]
[1757205541305,0.71492247,864.87,863.74,2.6015819]
[1757205541504,0.71492247,864.86,863.25,2.6015819]
[1757205541705,0.71492247,864.85,863.26,2.03156446]
[1757205542009,0.71492247,864.84,863.27,2.03156446]
[1757205542207,0.71492247,864.83,863.28,2.03156446]
[1757205542408,0.71492247,864.82,863.29,2.03156446]
[1757205542610,0.71492247,864.81,863.3,2.03156446]
[1757205542806,0.71492247,864.8,863.31,2.03156446]
[1757205543010,0.71492247,864.79,863.32,2.03156446]
[1757205543307,0.71492247,864.78,863.33,0.887373]
[1757205543509,0.71492247,864.77,863.34,0.887373]
[1757205543706,0.71492247,864.76,863.35,0.887373]
[1757205543907,0.71492247,864.75,863.36,0.887373]
[1757205544209,0.71492247,864.74,863.37,0.887373]
[1757205544510,0.71492247,864.73,863.38,0.887373]
[1757205544805,0.20155043,864.92,863.39,0.887373]
[1757205545105,0.71664083,864.91,863.4,0.887373]
[1757205545306,0.71664083,864.9,863.26,2.6015819]
[1757205545510,0.71664083,864.89,863.27,2.03155142]
[1757205545706,0.71664083,864.88,863.28,2.03155142]
[1757205545906,0.71664083,864.87,863.29,2.03155142]
[1757205546107,0.71664083,864.86,863.3,2.03155142]
[1757205546307,0.71664083,864.85,863.31,2.03155142]
[1757205546510,0.71664083,864.84,863.32,2.03155142]
[1757205546806,0.71664083,864.83,863.33,0.88745772]
[1757205547010,0.71664083,864.82,863.34,0.88745772]
[1757205547210,0.71664083,864.81,863.35,0.88745772]
[1757205547516,0.71664083,864.8,863.36,0.88745772]
[1757205547716,0.71664083,864.79,863.37,0.88745772]
[1757205547914,0.71664083,864.78,863.38,0.88745772]
[1757205548114,0.71664083,864.77,863.39,0.88745772]
[1757205548317,0.71664083,864.76,864.08,1.565586]
[1757205548517,0.71664083,864.75,864.08,1.565586]
[1757205548714,0.71664083,864.74,864.08,1.565586]
[1757205549018,0.71664083,864.73,864.08,1.565586]
[1757205549218,0.20155043,864.92,864.08,1.565586]
[1757205549419,0.71664077,864.91,864.08,1.565586]
[1757205549617,0.71664077,864.9,864.08,1.565586]
[1757205549916,0.71664077,864.89,864.08,1.565586]
[1757205550116,0.71664077,864.88,864.08,1.565586]
[1757205550320,0.71664077,864.87,864.11,1.565586]
[1757205550521,0.71664077,864.86,864.11,1.565586]
[1757205550722,0.71664077,864.85,864.11,1.565586]
[1757205551022,0.71664077,864.84,864.13,0.4311936]
[1757205551218,0.71664077,864.83,864.13,0.4311936]
[1757205551420,0.71664077,864.82,864.13,0.4311936]
[1757205551619,0.71664077,864.81,864.13,0.4311936]
[1757205551817,0.71664077,864.8,864.13,0.4311936]
[1757205552022,0.71664077,864.79,864.13,0.4311936]
[1757205552223,0.71664077,864.78,864.13,0.4311936]
[1757205552523,0.71664077,864.77,864.13,0.4311936]
[1757205552722,0.71664077,864.76,864.13,0.4311936]
[1757205553022,0.71664077,864.75,864.13,0.4311936]
[1757205553217,0.20155043,864.92,864.13,0.4311936]
[1757205553420,0.7203129,864.91,864.13,0.4311936]
[1757205553620,0.20155043,864.92,864.13,0.4311936]
[1757205553621,0.7203129,864.9,864.13,0.4311936]
[1757205553824,0.7203129,864.89,864.13,0.4311936]
[1757205554124,0.7203129,864.88,864.13,0.4311936]
[1757205554323,0.7203129,864.87,864.13,0.4311936]
[1757205554521,0.7203129,864.86,864.13,0.4311936]
[1757205554725,0.7203129,864.85,864.13,0.4311936]
[1757205554925,0.7203129,864.84,864.13,0.4311936]
[1757205555124,0.7203129,864.83,864.13,0.4311936]
[1757205555323,0.7203129,864.82,864.13,0.4311936]
[1757205555522,0.7203129,864.81,864.13,0.4311936]
[1757205555825,0.7203129,864.8,864.13,0.4311936]
[1757205556025,0.7203129,864.79,864.13,0.4311936]
[1757205556224,0.20155043,864.92,864.13,0.4311936]
[1757205556225,0.7203129,864.78,864.13,0.4311936]
[1757205556422,0.7203129,864.77,864.13,0.4311936]
[1757205556625,0.7203129,864.76,864.13,0.4311936]
[1757205556825,0.7203129,864.75,864.13,0.4311936]
[1757205557026,0.20155043,864.92,864.13,0.4311936]
[1757205557225,0.72031291,864.91,864.13,0.4311936]
[1757205557526,0.72031291,864.9,864.13,0.4311936]
[1757205557724,0.72031291,864.89,864.13,0.4311936]
[1757205557922,0.72031291,864.88,864.13,0.4311936]
[1757205558127,0.72031291,864.87,864.13,0.4311936]
[1757205558427,0.72031291,864.86,864.13,0.4311936]
[1757205558722,0.72031291,864.85,864.13,0.4311936]
[1757205558927,0.72031291,864.84,864.13,0.4311936]
[1757205559124,0.72031291,864.83,864.13,0.4311936]
[1757205559324,0.72031291,864.82,864.13,0.4311936]
[1757205559525,0.72031291,864.81,864.13,0.4311936]
[1757205559723,0.72031291,864.8,864.13,0.4311936]
[1757205559927,0.72031291,864.79,864.13,0.4311936]
[1757205560129,0.72031291,864.78,864.13,0.4311936]
[1757205560328,0.72031291,864.77,864.13,0.4311936]
[1757205560528,0.20155043,864.92,864.13,0.4311936]
[1757205560831,0.71167731,864.91,864.13,0.4311936]
[1757205561128,0.71167731,864.9,864.13,0.11742235]
[1757205561328,0.71167731,864.89,864.13,0.11742235]
[1757205561526,0.71167731,864.88,864.13,0.11742235]
[1757205561730,0.71167731,864.87,864.13,0.11742235]
[1757205561931,0.71167731,864.86,864.13,0.11742235]
[1757205562129,0.71167731,864.85,864.13,0.11742235]
[1757205562427,0.20155043,864.92,864.13,0.11742235]
[1757205562428,0.71167731,864.84,864.13,0.11742235]
[1757205562628,0.71167731,864.83,864.13,0.11742235]
[1757205562932,0.71167731,864.82,864.13,0.11742235]
[1757205563228,0.71167731,864.81,864.13,0.11742235]
[1757205563431,0.71167731,864.8,864.13,0.11742235]
[1757205563631,0.71167731,864.79,864.13,0.11742235]
[1757205563829,0.71167731,864.78,864.13,0.11742235]
[1757205564033,0.71167731,864.77,864.13,0.11742235]
[1757205564227,0.71167731,864.76,864.13,0.11742235]
[1757205564431,0.71167731,864.75,864.13,0.11742235]
[1757205564629,0.71167731,864.74,864.13,0.11742235]
[1757205564931,0.20155043,864.92,864.13,0.11742235]
[1757205565128,0.71508925,864.91,864.13,0.11742235]
[1757205565333,0.71508925,864.9,864.13,0.11742235]
[1757205565629,0.71508925,864.89,864.13,0.11742235]
[1757205565830,0.71508925,864.88,864.13,0.11742235]
[1757205566029,0.71508925,864.87,864.13,0.11742235]
[1757205566233,0.71508925,864.86,864.13,0.11742235]
[1757205566433,0.71508925,864.85,864.13,0.11742235]
[1757205566633,0.71508925,864.84,864.13,0.11742235]
[1757205566930,0.71508925,864.83,864.13,0.11742235]
[1757205567130,0.71508925,864.82,864.13,0.11742235]
[1757205567430,0.71508925,864.81,864.13,0.11742235]
[1757205567631,0.71508925,864.8,864.13,0.11742235]
[1757205567934,0.71508925,864.79,863.74,2.6015819]
[1757205568134,0.20155043,864.92,863.46,3.6434488]
[1757205568331,0.71503635,864.91,863.47,0.8897812]
[1757205568529,0.71503635,864.9,863.42,2.6015819]
[1757205568832,0.71503635,864.89,863.43,0.88953135]
[1757205569029,0.71503635,864.88,863.44,0.88953135]
[1757205569234,0.71503635,864.87,863.45,0.88953135]
[1757205569534,0.71503635,864.86,863.42,2.6015819]
[1757205569730,0.71503635,864.85,863.43,0.88939909]
[1757205569934,0.71503635,864.84,863.44,0.88939909]
[1757205570134,0.71503635,864.83,863.45,0.88939909]
[1757205570332,0.20155043,864.92,863.42,2.6015819]
[1757205570633,0.71464759,864.91,863.43,0.88929943]
[1757205570934,0.20155043,864.92,863.44,0.88929943]
[1757205570935,0.71464759,864.9,863.44,0.88929943]
[1757205571133,0.71464759,864.89,863.41,2.6015819]
[1757205571336,0.71464759,864.88,863.42,0.88929966]
[1757205571531,0.71464759,864.87,863.43,0.88929966]
[1757205571733,0.71464759,864.86,863.44,0.88929966]
[1757205571934,0.20155043,864.92,863.41,2.6015819]
[1757205572132,0.71458215,864.91,863.42,0.88921792]
[1757205572336,0.71458215,864.9,863.46,2.6015819]
[1757205572631,0.20155043,864.92,863.47,0.88921792]
[1757205572832,0.71800678,864.91,863.48,0.88921792]
[1757205573034,0.71800678,864.9,863.49,0.88921792]
[1757205573235,0.20155043,864.92,863.5,0.88921792]
[1757205573435,0.71795681,864.91,863.46,2.6015819]
[1757205573736,0.71795681,864.9,863.47,0.88887166]
[1757205573936,0.20155043,864.92,863.48,0.88887166]
[1757205574135,0.71795701,864.91,863.49,0.88887166]
[1757205574432,0.20155043,864.92,863.5,0.88887166]
[1757205574630,0.71791233,864.91,863.44,2.6015819]
[1757205574835,0.20155043,864.92,863.45,0.88881669]
[1757205575035,0.20155043,864.92,863.43,2.6015819]
[1757205575036,0.7179122,864.91,863.46,0.88881669]
[1757205575236,0.20155043,864.92,863.47,0.88881669]
[1757205575532,0.71787161,864.91,863.48,0.88881669]
[1757205575737,0.20155043,864.92,863.49,0.88881669]
[1757205575936,0.71787181,864.91,863.5,0.88881669]
[1757205576136,0.20155043,864.92,863.43,2.6015819]
[1757205576333,0.71786594,864.91,863.44,0.88876699]
[1757205576633,0.20155043,864.92,863.45,0.88876699]
[1757205576837,0.20155043,864.92,863.46,0.88876699]
[1757205576838,0.71783507,864.91,863.46,0.88876699]
[1757205577134,0.20155043,864.92,863.47,0.88876699]
[1757205577336,0.71782869,864.91,863.48,0.88876699]
[1757205577534,0.20155043,864.92,863.49,0.88876699]
[1757205577735,0.20155043,864.92,863.43,2.6015819]
[1757205577935,0.20155043,864.92,863.78,2.6015819]
[1757205581240,0.20155043,864.92,864.22,1.5634083]
[1757205581439,0.20155043,864.92,864.22,0.4358929]
[1757205581942,0.7176967,864.91,864.22,0.4358929]
[1757205582142,0.7176967,864.9,864.22,0.4358929]
[1757205582339,0.7176967,864.89,864.22,0.4358929]
[1757205582640,0.7176967,864.88,863.68,2.6015819]
[1757205582842,0.7176967,864.87,863.68,2.6015819]
[1757205583042,0.7176967,864.86,863.69,2.6015819]
[1757205583244,0.7176967,864.85,863.69,2.6015819]
[1757205583537,0.7176967,864.84,863.69,2.6015819]
[1757205583742,0.7176967,864.83,863.73,2.6015819]
[1757205583941,0.20155043,864.92,863.73,2.6015819]
[1757205584139,0.72987912,864.91,863.73,2.6015819]
[1757205584440,0.72987912,864.9,863.73,2.6015819]
[1757205584644,0.72987912,864.89,863.77,2.6015819]
[1757205584844,0.72987912,864.88,863.77,2.6015819]
[1757205585055,0.20155043,864.92,863.77,2.6015819]
[1757205585345,0.71260429,864.91,863.77,2.6015819]
[1757205585546,0.71260429,864.9,863.77,2.6015819]
[1757205585840,0.71260429,864.89,863.77,2.6015819]
[1757205586045,0.71260429,864.88,863.77,2.6015819]
[1757205586247,0.20155043,864.92,863.77,2.6015819]
[1757205586545,0.7125731,864.91,863.77,2.6015819]
[1757205586746,0.7125731,864.9,863.77,2.6015819]
[1757205586946,0.7125731,864.89,863.77,2.6015819]
[1757205587144,0.7125731,864.88,863.77,2.6015819]
[1757205587442,0.20155043,864.92,863.77,2.6015819]
[1757205587644,0.71256024,864.91,863.77,2.6015819]
[1757205587842,0.71256024,864.9,863.77,2.6015819]
[1757205588047,0.71256024,864.89,863.77,2.6015819]
[1757205588249,0.71256024,864.88,863.77,2.6015819]
[1757205588449,0.20155043,864.92,863.77,2.6015819]
[1757205588745,0.71254895,864.91,863.77,2.6015819]
[1757205588945,0.71254895,864.9,863.77,2.6015819]
[1757205589146,0.20155043,864.92,863.77,2.6015819]
[1757205589346,0.20155043,864.92,863.81,2.6015819]
[1757205590048,0.20155043,864.92,863.83,2.6015819]
[1757205592051,0.20155043,864.92,863.95,2.6015819]
[1757205592452,0.20155043,864.92,863.94,2.6015819]
[1757205597750,0.20155043,864.92,863.93,2.6015819]
[1757205598749,0.20155043,864.92,863.38,2.6015819]
[1757205598950,0.20155043,864.92,863.39,2.02603616]
[1757205599153,0.20155043,864.92,863.38,2.6015819]
[1757205599154,0.20155043,864.92,863.4,2.02603616]
[1757205599453,0.20155043,864.92,863.41,2.02603616]
[1757205599650,0.20155043,864.92,863.42,2.02603616]
[1757205599854,0.20155043,864.92,863.43,2.02603616]
[1757205600154,0.20155043,864.92,863.44,2.02603616]
[1757205600355,0.20155043,864.92,863.45,2.02603616]
[1757205600553,0.20155043,864.92,863.46,2.02603616]
[1757205600754,0.20155043,864.92,863.47,2.02603616]
[1757205600957,0.20155043,864.92,863.48,2.02603616]
[1757205601158,0.20155043,864.92,863.49,2.02603616]
[1757205601351,0.20155043,864.92,864.31,1.56112972]
[1757205601957,0.20155043,864.92,864.32,1.56112972]
[1757205602257,0.20155043,864.92,864.38,1.04060972]
[1757205604754,0.20155043,864.92,864.44,1.04060972]
[1757205611563,0.20155043,864.92,864.35,1.56112972]
[1757205611564,0.20155043,864.92,864.45,1.04060972]
[1757205621465,0.20155043,864.92,864.48,1.04060972]
[1757205626668,0.20155043,864.92,864.49,1.04060972]
[1757205631973,0.20155043,864.92,864.47,1.04060972]
[1757205632378,0.20155043,864.92,864.46,1.04060972]
[1757205633879,0.20155043,864.92,864.47,1.04060972]
[1757205634479,0.20155043,864.92,864.48,1.04060972]
[1757205635476,0.20155043,864.92,864.49,1.04060972]
[1757205637880,0.20155043,864.92,864.5,1.04060972]
[1757205641886,0.20155043,864.92,864.5,2.60173944]
[1757205653292,0.20155043,864.92,864.5,1.15176794]
[1757205664203,0.20155043,864.92,863.8,2.6015819]
[1757205664405,0.20155043,864.92,863.81,0.88929717]
[1757205664601,0.20155043,864.92,863.82,0.88929717]
[1757205664805,0.20155043,864.92,863.83,0.88929717]
[1757205665005,0.20155043,864.92,863.84,0.88929717]
[1757205665303,0.20155043,864.92,863.85,0.88929717]
[1757205665502,0.20155043,864.92,863.86,0.88929717]
[1757205665704,0.20155043,864.92,863.87,0.88929717]
[1757205665902,0.20155043,864.92,863.88,0.88929717]
[1757205666200,0.20155043,864.92,863.89,0.88929717]
[1757205666402,0.20155043,864.92,863.9,0.88929717]
[1757205666701,0.20155043,864.92,863.91,0.88929717]
[1757205666906,0.20155043,864.92,863.63,2.6015819]
[1757205667104,0.20155043,864.92,863.64,2.03146878]
[1757205667405,0.20155043,864.92,863.65,2.03146878]
[1757205667603,0.20155043,864.92,863.66,2.03146878]
[1757205667803,0.20155043,864.92,863.67,2.03146878]